DepartmentFamily,Entity,Date,ExpenseType,ExpenseArea,Supplier,PaymentNumber,InvoiceDistributionAmount,InvoiceDescription,SupplierPostCode,ExpenditureType
FOOD STANDARDS AGENCY - Westminster,FOOD STANDARDS AGENCY - Westminster,2021-03-25,EXP - PURCHASE OF GOODS/SERVICES - ACCOMM & BLDNG MGMT - SHARED SITE RECHARGE,SECURITY & ESTATES,MONTAGU EVANS LLP,1011715497,735528.37,SOP1-754994-901256-313193-RENTAL FOSS HOUSE,EH3 8EG,Admin
FOOD STANDARDS AGENCY - Westminster,FOOD STANDARDS AGENCY - Westminster,2021-03-26,EXP - AMORTISATION - INTANGIBLE ASSETS,IT SERVICE DELIVERY,COMPUTACENTER UK LTD,1011715514,545511.75,Lenovo Laptops for Buy & Store,AL10 9TW,Capital
FOOD STANDARDS AGENCY - Westminster,FOOD STANDARDS AGENCY - Westminster,2021-03-26,EXP - AMORTISATION - INTANGIBLE ASSETS,IT SERVICE DELIVERY,COMPUTACENTER UK LTD,1011715514,109102.35,UK VAT - UK VAT,AL10 9TW,Capital
FOOD STANDARDS AGENCY - Westminster,FOOD STANDARDS AGENCY - Westminster,2021-03-17,EXP - PURCHASE OF GOODS/SERVICES - ACCOMM & BLDNG MGMT - SHARED SITE RECHARGE,SECURITY & ESTATES,MINISTRY OF JUSTICE,2011700001,-39224.46,Clive House CIVIL ESTATE OCCUPANCYShort Leasehold Property and Maintenance   bulk PO,NP209BB,Admin
FOOD STANDARDS AGENCY - Westminster,FOOD STANDARDS AGENCY - Westminster,2021-03-17,EXP - PURCHASE OF GOODS/SERVICES - ACCOMM & BLDNG MGMT - SHARED SITE RECHARGE,SECURITY & ESTATES,MINISTRY OF JUSTICE,2011700001,652179.84,Clive House CIVIL ESTATE OCCUPANCYShort Leasehold Property and Maintenance   bulk PO,NP209BB,Admin
FOOD STANDARDS AGENCY - Westminster,FOOD STANDARDS AGENCY - Westminster,2021-03-17,EXP - PURCHASE OF GOODS/SERVICES - ACCOMM & BLDNG MGMT - SHARED SITE RECHARGE,SECURITY & ESTATES,MINISTRY OF JUSTICE,2011700001,21202.55,SOP1-750491-901256-174097-ASSET VERIFICATION FOR CLIVE HOUSE,NP209BB,Admin
FOOD STANDARDS AGENCY - Westminster,FOOD STANDARDS AGENCY - Westminster,2021-03-12,EXP - PURCHASE OF GOODS/SERVICES - OTHER ICT COSTS - COMPUTER SOFTWARE,IT SERVICE DELIVERY,BOXXE LTD,1011715348,527664.72,Service Now Licenses (27 Feb 2021 to 26 Feb 2024),YO61 1ET,Admin
FOOD STANDARDS AGENCY - Westminster,FOOD STANDARDS AGENCY - Westminster,2021-03-12,EXP - PURCHASE OF GOODS/SERVICES - OTHER ICT COSTS - COMPUTER SOFTWARE,IT SERVICE DELIVERY,BOXXE LTD,1011715348,105532.94,UK VAT - UK VAT,YO61 1ET,Admin
FOOD STANDARDS AGENCY - Westminster,FOOD STANDARDS AGENCY - Westminster,2021-03-30,EXP - PURCHASE OF GOODS/SERVICES - SHARED SERV OUTSRCG- CIVIL SERV PENSION ADMIN,FINANCE,LONDON PENSIONS FUND AUTHORITY,1011715543,250000,SOP1-759711-173305-173858-LPFA ADDITIONAL ERS,EC3N 4LP,Admin
FOOD STANDARDS AGENCY - Westminster,FOOD STANDARDS AGENCY - Westminster,2021-03-24,EXP - PURCHASE OF GOODS/SERVICES - OTHER ICT COSTS - COMPUTER HARDWARE,IT SERVICE DELIVERY,COREAZURE LTD,1011715478,36185,IT24 Datacentre and Hosting,EC1N 8TS,Admin
FOOD STANDARDS AGENCY - Westminster,FOOD STANDARDS AGENCY - Westminster,2021-03-24,EXP - PURCHASE OF GOODS/SERVICES - OTHER ICT COSTS - COMPUTER HARDWARE,IT SERVICE DELIVERY,COREAZURE LTD,1011715478,7237,UK VAT - UK VAT,EC1N 8TS,Admin
FOOD STANDARDS AGENCY - Westminster,FOOD STANDARDS AGENCY - Westminster,2021-03-24,EXP - PURCHASE OF GOODS/SERVICES - IT MANAGEMENT AND CHANGE - IT DEVELOPMENT,IT STRATEGY & DEVELOPMENT,COREAZURE LTD,1011715478,22000,Development Environment (Design and Build),EC1N 8TS,Admin
FOOD STANDARDS AGENCY - Westminster,FOOD STANDARDS AGENCY - Westminster,2021-03-24,EXP - PURCHASE OF GOODS/SERVICES - IT MANAGEMENT AND CHANGE - IT DEVELOPMENT,IT STRATEGY & DEVELOPMENT,COREAZURE LTD,1011715478,4400,UK VAT - UK VAT,EC1N 8TS,Admin
FOOD STANDARDS AGENCY - Westminster,FOOD STANDARDS AGENCY - Westminster,2021-03-24,EXP - PURCHASE OF GOODS/SERVICES - IT MANAGEMENT AND CHANGE - IT DEVELOPMENT,IT STRATEGY & DEVELOPMENT,COREAZURE LTD,1011715478,8666,UK VAT - UK VAT,EC1N 8TS,Admin
FOOD STANDARDS AGENCY - Westminster,FOOD STANDARDS AGENCY - Westminster,2021-03-24,EXP - PURCHASE OF GOODS/SERVICES - IT MANAGEMENT AND CHANGE - IT DEVELOPMENT,IT STRATEGY & DEVELOPMENT,COREAZURE LTD,1011715478,43330,WP21 Hub & Spoke Design,EC1N 8TS,Admin
FOOD STANDARDS AGENCY - Westminster,FOOD STANDARDS AGENCY - Westminster,2021-03-24,EXP - PURCHASE OF GOODS/SERVICES - IT MANAGEMENT AND CHANGE - IT DEVELOPMENT,IT STRATEGY & DEVELOPMENT,COREAZURE LTD,1011715478,14034,UK VAT - UK VAT,EC1N 8TS,Admin
FOOD STANDARDS AGENCY - Westminster,FOOD STANDARDS AGENCY - Westminster,2021-03-24,EXP - PURCHASE OF GOODS/SERVICES - IT MANAGEMENT AND CHANGE - IT DEVELOPMENT,IT STRATEGY & DEVELOPMENT,COREAZURE LTD,1011715478,70170,WP20 VPN Replacement,EC1N 8TS,Admin
FOOD STANDARDS AGENCY - Westminster,FOOD STANDARDS AGENCY - Westminster,2021-03-24,EXP - PURCHASE OF GOODS/SERV - SUPPORT - IT SUPPORT SERVICES,IT SERVICE DELIVERY,COREAZURE LTD,1011715478,5095,CCN60 RNG Application migration to Azure,EC1N 8TS,Admin
FOOD STANDARDS AGENCY - Westminster,FOOD STANDARDS AGENCY - Westminster,2021-03-24,EXP - PURCHASE OF GOODS/SERV - SUPPORT - IT SUPPORT SERVICES,IT SERVICE DELIVERY,COREAZURE LTD,1011715478,1019,UK VAT - UK VAT,EC1N 8TS,Admin
FOOD STANDARDS AGENCY - Westminster,FOOD STANDARDS AGENCY - Westminster,2021-03-24,EXP - PURCHASE OF GOODS/SERVICES - OTHER ICT COSTS,Surveillance,COREAZURE LTD,1011715478,2200,IT24 CCN62 Azure Data Factory,EC1N 8TS,Admin
FOOD STANDARDS AGENCY - Westminster,FOOD STANDARDS AGENCY - Westminster,2021-03-24,EXP - PURCHASE OF GOODS/SERVICES - OTHER ICT COSTS,Surveillance,COREAZURE LTD,1011715478,440,UK VAT - UK VAT,EC1N 8TS,Admin
FOOD STANDARDS AGENCY - Westminster,FOOD STANDARDS AGENCY - Westminster,2021-03-29,EXP - PURCHASE OF GOODS/SERV - SUPPORT - IT SUPPORT SERVICES,ACHIEVING BUSINESS COMPLIANCE,FOUNDRY4 CONSULTING LTD,1011715519,72000,Platforms ?? Complaints   FS430679,E1 6JE,Admin
FOOD STANDARDS AGENCY - Westminster,FOOD STANDARDS AGENCY - Westminster,2021-03-29,EXP - PURCHASE OF GOODS/SERV - SUPPORT - IT SUPPORT SERVICES,ACHIEVING BUSINESS COMPLIANCE,FOUNDRY4 CONSULTING LTD,1011715519,72000,Platforms ?? New Entrants FS430678,E1 6JE,Admin
FOOD STANDARDS AGENCY - Westminster,FOOD STANDARDS AGENCY - Westminster,2021-03-29,EXP - PURCHASE OF GOODS/SERVICES - OTHER - PROGRAMME EXPENDITURE,DIGITAL,FOUNDRY4 CONSULTING LTD,1011715519,6615,FSA Food Platforms Consulting Services SOW,E1 6JE,Programme
FOOD STANDARDS AGENCY - Westminster,FOOD STANDARDS AGENCY - Westminster,2021-03-30,EXP - PURCHASE OF GOODS/SERVICES - OTHER - PROGRAMME EXPENDITURE,COMMS,MSQ PARTNERS GROUP LTD,1011715536,1743.83,MSQ - Development of Risk Comms powerpoint presentation??,W1T 4TJ,Programme
FOOD STANDARDS AGENCY - Westminster,FOOD STANDARDS AGENCY - Westminster,2021-03-30,EXP - PURCHASE OF GOODS/SERVICES - OTHER - PROGRAMME EXPENDITURE,COMMS,MSQ PARTNERS GROUP LTD,1011715536,12000,MSQ - Young peoples influencers additional charge,W1T 4TJ,Programme
FOOD STANDARDS AGENCY - Westminster,FOOD STANDARDS AGENCY - Westminster,2021-03-30,EXP - PURCHASE OF GOODS/SERVICES - OTHER - PROGRAMME EXPENDITURE,COMMS,MSQ PARTNERS GROUP LTD,1011715536,5000,MSQ - PPDS Asset design additional charges,W1T 4TJ,Programme
FOOD STANDARDS AGENCY - Westminster,FOOD STANDARDS AGENCY - Westminster,2021-03-30,EXP - PURCHASE OF GOODS/SERVICES - OTHER - PROGRAMME EXPENDITURE,COMMS,MSQ PARTNERS GROUP LTD,1011715536,13000,MSQ - Allergy PPDS Paid Media,W1T 4TJ,Programme
FOOD STANDARDS AGENCY - Westminster,FOOD STANDARDS AGENCY - Westminster,2021-03-30,EXP - PURCHASE OF GOODS/SERVICES - OTHER - PROGRAMME EXPENDITURE,COMMS,MSQ PARTNERS GROUP LTD,1011715536,23471.48,MSQ:Young people allergy campaign (12-16),W1T 4TJ,Programme
FOOD STANDARDS AGENCY - Westminster,FOOD STANDARDS AGENCY - Westminster,2021-03-30,EXP - PURCHASE OF GOODS/SERVICES - OTHER - PROGRAMME EXPENDITURE,COMMS,MSQ PARTNERS GROUP LTD,1011715536,46096,MSQ:a large volume of people saying they aren't adhering to date marking,W1T 4TJ,Programme
FOOD STANDARDS AGENCY - Westminster,FOOD STANDARDS AGENCY - Westminster,2021-03-30,EXP - PURCHASE OF GOODS/SERVICES - OTHER - PROGRAMME EXPENDITURE,COMMS,MSQ PARTNERS GROUP LTD,1011715536,6932.89,MSQ:engaging with SME and micro food businesses,W1T 4TJ,Programme
FOOD STANDARDS AGENCY - Westminster,FOOD STANDARDS AGENCY - Westminster,2021-03-30,EXP - PURCHASE OF GOODS/SERVICES - OTHER - PROGRAMME EXPENDITURE,COMMS,MSQ PARTNERS GROUP LTD,1011715536,28914.57,MSQ:accessibility and digital landscape ,W1T 4TJ,Programme
FOOD STANDARDS AGENCY - Westminster,FOOD STANDARDS AGENCY - Westminster,2021-03-26,EXP - PURCHASE OF GOODS/SERVICES - OTHER - PROGRAMME EXPENDITURE,ANALYTICS UNIT,IPSOS MORI,1011715517,125024,Food and You 2 - new line on PO11770005831 required,E1W 1YW,Programme
FOOD STANDARDS AGENCY - Westminster,FOOD STANDARDS AGENCY - Westminster,2021-03-05,EXP - PURCHASE OF GOODS/SERVICES - TELECOMS - TELEPHONE,IT SERVICE DELIVERY,EXPONENTIAL E LTD,1011715283,5.17,UK VAT - UK VAT,E1 8EU,Admin
FOOD STANDARDS AGENCY - Westminster,FOOD STANDARDS AGENCY - Westminster,2021-03-05,EXP - PURCHASE OF GOODS/SERVICES - TELECOMS - TELEPHONE,IT SERVICE DELIVERY,EXPONENTIAL E LTD,1011715283,55.05,UK VAT - UK VAT,E1 8EU,Admin
FOOD STANDARDS AGENCY - Westminster,FOOD STANDARDS AGENCY - Westminster,2021-03-05,EXP - PURCHASE OF GOODS/SERVICES - TELECOMS - TELEPHONE,IT SERVICE DELIVERY,EXPONENTIAL E LTD,1011715283,25.83,Variation 13 - additional line (Feb 2021),E1 8EU,Admin
FOOD STANDARDS AGENCY - Westminster,FOOD STANDARDS AGENCY - Westminster,2021-03-05,EXP - PURCHASE OF GOODS/SERVICES - TELECOMS - TELEPHONE,IT SERVICE DELIVERY,EXPONENTIAL E LTD,1011715283,275.25,Variation 13 - additional line (Feb 2021),E1 8EU,Admin
FOOD STANDARDS AGENCY - Westminster,FOOD STANDARDS AGENCY - Westminster,2021-03-05,EXP - PURCHASE OF GOODS/SERVICES - OTHER FACILTIES COSTS - SECURITY,IT SERVICE DELIVERY,EXPONENTIAL E LTD,1011715283,961.61,IT36 Variation 34 Junipur Upgrades- additional line,E1 8EU,Admin
FOOD STANDARDS AGENCY - Westminster,FOOD STANDARDS AGENCY - Westminster,2021-03-05,EXP - PURCHASE OF GOODS/SERVICES - OTHER FACILTIES COSTS - SECURITY,IT SERVICE DELIVERY,EXPONENTIAL E LTD,1011715283,5144.8,IT36 Variation 34 Junipur Upgrades- additional line,E1 8EU,Admin
FOOD STANDARDS AGENCY - Westminster,FOOD STANDARDS AGENCY - Westminster,2021-03-05,EXP - PURCHASE OF GOODS/SERVICES - OTHER FACILTIES COSTS - SECURITY,IT SERVICE DELIVERY,EXPONENTIAL E LTD,1011715283,39516.5,IT36 Variation 34 Junipur Upgrades- additional line,E1 8EU,Admin
FOOD STANDARDS AGENCY - Westminster,FOOD STANDARDS AGENCY - Westminster,2021-03-05,EXP - PURCHASE OF GOODS/SERVICES - OTHER FACILTIES COSTS - SECURITY,IT SERVICE DELIVERY,EXPONENTIAL E LTD,1011715283,67618.44,IT36 Variation 34 Junipur Upgrades- additional line,E1 8EU,Admin
FOOD STANDARDS AGENCY - Westminster,FOOD STANDARDS AGENCY - Westminster,2021-03-05,EXP - PURCHASE OF GOODS/SERVICES - OTHER FACILTIES COSTS - SECURITY,IT SERVICE DELIVERY,EXPONENTIAL E LTD,1011715283,192.32,UK VAT - UK VAT,E1 8EU,Admin
FOOD STANDARDS AGENCY - Westminster,FOOD STANDARDS AGENCY - Westminster,2021-03-05,EXP - PURCHASE OF GOODS/SERVICES - OTHER FACILTIES COSTS - SECURITY,IT SERVICE DELIVERY,EXPONENTIAL E LTD,1011715283,1028.96,UK VAT - UK VAT,E1 8EU,Admin
FOOD STANDARDS AGENCY - Westminster,FOOD STANDARDS AGENCY - Westminster,2021-03-05,EXP - PURCHASE OF GOODS/SERVICES - OTHER FACILTIES COSTS - SECURITY,IT SERVICE DELIVERY,EXPONENTIAL E LTD,1011715283,7903.3,UK VAT - UK VAT,E1 8EU,Admin
FOOD STANDARDS AGENCY - Westminster,FOOD STANDARDS AGENCY - Westminster,2021-03-05,EXP - PURCHASE OF GOODS/SERVICES - OTHER FACILTIES COSTS - SECURITY,IT SERVICE DELIVERY,EXPONENTIAL E LTD,1011715283,13523.69,UK VAT - UK VAT,E1 8EU,Admin
FOOD STANDARDS AGENCY - Westminster,FOOD STANDARDS AGENCY - Westminster,2021-03-19,redacted under S43 FOI Act,OPERATIONAL DELIVERY,redacted under S43 FOI Act,1011715427,21983.4,redacted under S43 FOI Act,redacted under S43 FOI Act,Admin
FOOD STANDARDS AGENCY - Westminster,FOOD STANDARDS AGENCY - Westminster,2021-03-19,redacted under S43 FOI Act,OPERATIONAL DELIVERY,redacted under S43 FOI Act,1011715427,109917,redacted under S43 FOI Act,redacted under S43 FOI Act,Admin
FOOD STANDARDS AGENCY - Westminster,FOOD STANDARDS AGENCY - Westminster,2021-03-31,EXP - PURCHASE OF GOODS/SERV - SUPPORT - IT SUPPORT SERVICES,Surveillance,EPIMORPHICS LTD,1011715553,3219,Hosting Charges,BS20 6PT,Admin
FOOD STANDARDS AGENCY - Westminster,FOOD STANDARDS AGENCY - Westminster,2021-03-31,EXP - PURCHASE OF GOODS/SERV - SUPPORT - IT SUPPORT SERVICES,Surveillance,EPIMORPHICS LTD,1011715553,8000,Monthly Support,BS20 6PT,Admin
FOOD STANDARDS AGENCY - Westminster,FOOD STANDARDS AGENCY - Westminster,2021-03-31,EXP - PURCHASE OF GOODS/SERV - SUPPORT - IT SUPPORT SERVICES,Surveillance,EPIMORPHICS LTD,1011715553,5550,Technical Uplift Activities,BS20 6PT,Admin
FOOD STANDARDS AGENCY - Westminster,FOOD STANDARDS AGENCY - Westminster,2021-03-31,EXP - PURCHASE OF GOODS/SERVICES - OTHER PROFESSIONAL SERVICES,Surveillance,EPIMORPHICS LTD,1011715553,10700,FSA581 - Unified View Data Support nd RaFB API Update,BS20 6PT,Admin
FOOD STANDARDS AGENCY - Westminster,FOOD STANDARDS AGENCY - Westminster,2021-03-31,EXP - PURCHASE OF GOODS/SERV - SUPPORT - IT SUPPORT SERVICES,Surveillance,EPIMORPHICS LTD,1011715553,25650,FSA581 - WP36 API Documentation and Patterns,BS20 6PT,Admin
FOOD STANDARDS AGENCY - Westminster,FOOD STANDARDS AGENCY - Westminster,2021-03-31,EXP - PURCHASE OF GOODS/SERV - SUPPORT - IT SUPPORT SERVICES,Surveillance,EPIMORPHICS LTD,1011715553,5130,UK VAT - UK VAT,BS20 6PT,Admin
FOOD STANDARDS AGENCY - Westminster,FOOD STANDARDS AGENCY - Westminster,2021-03-31,EXP - PURCHASE OF GOODS/SERV - SUPPORT - IT SUPPORT SERVICES,Surveillance,EPIMORPHICS LTD,1011715553,23175,FSA581 - WP33 LA Landscape Options,BS20 6PT,Admin
FOOD STANDARDS AGENCY - Westminster,FOOD STANDARDS AGENCY - Westminster,2021-03-31,EXP - PURCHASE OF GOODS/SERV - SUPPORT - IT SUPPORT SERVICES,Surveillance,EPIMORPHICS LTD,1011715553,4635,UK VAT - UK VAT,BS20 6PT,Admin
FOOD STANDARDS AGENCY - Westminster,FOOD STANDARDS AGENCY - Westminster,2021-03-31,EXP - PURCHASE OF GOODS/SERV - SUPPORT - IT SUPPORT SERVICES,Surveillance,EPIMORPHICS LTD,1011715553,16100,FSA581 - WP35 Alerts New Allergen,BS20 6PT,Admin
FOOD STANDARDS AGENCY - Westminster,FOOD STANDARDS AGENCY - Westminster,2021-03-31,EXP - PURCHASE OF GOODS/SERV - SUPPORT - IT SUPPORT SERVICES,Surveillance,EPIMORPHICS LTD,1011715553,3220,UK VAT - UK VAT,BS20 6PT,Admin
FOOD STANDARDS AGENCY - Westminster,FOOD STANDARDS AGENCY - Westminster,2021-03-31,EXP - PURCHASE OF GOODS/SERV - SUPPORT - IT SUPPORT SERVICES,Surveillance,EPIMORPHICS LTD,1011715553,16000,FSA581 - WP34 Data IP and Licensing Best Practice,BS20 6PT,Admin
FOOD STANDARDS AGENCY - Westminster,FOOD STANDARDS AGENCY - Westminster,2021-03-31,EXP - PURCHASE OF GOODS/SERV - SUPPORT - IT SUPPORT SERVICES,Surveillance,EPIMORPHICS LTD,1011715553,3200,UK VAT - UK VAT,BS20 6PT,Admin
FOOD STANDARDS AGENCY - Westminster,FOOD STANDARDS AGENCY - Westminster,2021-03-19,EXP - PURCHASE OF GOODS/SERVICES - OTHER ICT COSTS,DIGITAL,I10 LTD,1011715416,57200,FSA728 WP006 - Applications Modernisation Discovery,NG31 6JL,Admin
FOOD STANDARDS AGENCY - Westminster,FOOD STANDARDS AGENCY - Westminster,2021-03-19,EXP - PURCHASE OF GOODS/SERVICES - OTHER ICT COSTS,Surveillance,I10 LTD,1011715416,13700,"FSA728 WP1 - Developing Data, Digital And Tech Service Capabilities & Skills",NG31 6JL,Admin
FOOD STANDARDS AGENCY - Westminster,FOOD STANDARDS AGENCY - Westminster,2021-03-19,EXP - PURCHASE OF GOODS/SERVICES - OTHER - PROGRAMME EXPENDITURE,DIGITAL,I10 LTD,1011715416,2975,FSA728 LAEMS/Wider Data Service,NG31 6JL,Programme
FOOD STANDARDS AGENCY - Westminster,FOOD STANDARDS AGENCY - Westminster,2021-03-19,EXP - PURCHASE OF GOODS/SERVICES - ICT OUTSOURCING & MAINT/SUPPORT,FOOD HYPERSENSITIVITIES,I10 LTD,1011715416,12850,FSA728 WP004 FARRM,NG31 6JL,Admin
FOOD STANDARDS AGENCY - Westminster,FOOD STANDARDS AGENCY - Westminster,2021-03-12,EXP - PURCHASE OF GOODS/SERVICES - OTHER - PROGRAMME EXPENDITURE,Surveillance,COGNIZANT WORLDWIDE LTD,1011715351,25100,FSA715 FSA Surveillance Programme ?? Data Science Core Team,W2 6BD,Programme
FOOD STANDARDS AGENCY - Westminster,FOOD STANDARDS AGENCY - Westminster,2021-03-12,EXP - PURCHASE OF GOODS/SERVICES - OTHER - PROGRAMME EXPENDITURE,Surveillance,COGNIZANT WORLDWIDE LTD,1011715351,13387.5,FSA715 FSA Surveillance Programme ?? AI Lead - (correct Accounting),W2 6BD,Programme
FOOD STANDARDS AGENCY - Westminster,FOOD STANDARDS AGENCY - Westminster,2021-03-12,EXP - PURCHASE OF GOODS/SERVICES - OTHER - PROGRAMME EXPENDITURE,Surveillance,COGNIZANT WORLDWIDE LTD,1011715351,40607,SoW008 - FHRS Enhancement Project,W2 6BD,Programme
FOOD STANDARDS AGENCY - Westminster,FOOD STANDARDS AGENCY - Westminster,2021-03-02,EXP - PURCHASE OF GOODS/SERVICES - OTHER ICT COSTS - COMPUTER HARDWARE,IT SERVICE DELIVERY,COREAZURE LTD,1011715238,98841.83,IT24 Var 2 - Azure CSP ?? Consumption Jan 21,EC1N 8TS,Admin
FOOD STANDARDS AGENCY - Westminster,FOOD STANDARDS AGENCY - Westminster,2021-03-16,EXP - PURCHASE OF GOODS/SERVICES - OTHER - PROGRAMME EXPENDITURE,SCIENTIFIC METHODS AND LABORATORY POLICY,C E F A S,2011700000,93750,FAO Reference Centre for Bivalve Mollusc Sanitation,NR33 0HT,Programme
FOOD STANDARDS AGENCY - Westminster,FOOD STANDARDS AGENCY - Westminster,2021-03-31,EXP - PURCHASE OF GOODS/SERVICES - OTHER ICT COSTS - COMPUTER HARDWARE,IT SERVICE DELIVERY,COREAZURE LTD,1011715548,83643.55,IT24 Var 2 - Azure CSP ?? Consumption Feb 21,EC1N 8TS,Admin
FOOD STANDARDS AGENCY - Westminster,FOOD STANDARDS AGENCY - Westminster,2021-03-31,EXP - PURCHASE OF GOODS/SERVICES - OTHER - PROGRAMME EXPENDITURE,ANALYTICS UNIT,IPSOS MORI,1011715558,80000,Gene Editing consumer project,E1W 1YW,Programme
FOOD STANDARDS AGENCY - Westminster,FOOD STANDARDS AGENCY - Westminster,2021-03-23,EXP - PURCHASE OF GOODS/SERVICES - OTHER - PROGRAMME EXPENDITURE,Surveillance,COGNIZANT WORLDWIDE LTD,1011715468,75059,Supply of Data Science Capability February 2021,W2 6BD,Programme
FOOD STANDARDS AGENCY - Westminster,FOOD STANDARDS AGENCY - Westminster,2021-03-25,EXP - PURCHASE OF GOODS/SERVICES - OTHER - PROGRAMME EXPENDITURE,REGULATORY DELIVERY,C E F A S,2011700014,22294,Shellfish Classification Management,NR33 0HT,Programme
FOOD STANDARDS AGENCY - Westminster,FOOD STANDARDS AGENCY - Westminster,2021-03-25,EXP - PURCHASE OF GOODS/SERVICES - OTHER - PROGRAMME EXPENDITURE,REGULATORY DELIVERY,C E F A S,2011700014,36559.08,Shellfish Biotoxin Analysis,NR33 0HT,Programme
FOOD STANDARDS AGENCY - Westminster,FOOD STANDARDS AGENCY - Westminster,2021-03-25,EXP - PURCHASE OF GOODS/SERVICES - OTHER - PROGRAMME EXPENDITURE,REGULATORY DELIVERY,C E F A S,2011700014,12047.73,Shellfish Phytoplankton analysis official controls,NR33 0HT,Programme
FOOD STANDARDS AGENCY - Westminster,FOOD STANDARDS AGENCY - Westminster,2021-03-22,EXP - PURCHASE OF GOODS/SERVICES - OTHER FACILTIES COSTS - SECURITY,"DATA, INFORMATION, GOVERNANCE AND SECURITY",LITTLE FISH UK LTD,1011715438,500,UK VAT - UK VAT,NG1 1LS,Admin
FOOD STANDARDS AGENCY - Westminster,FOOD STANDARDS AGENCY - Westminster,2021-03-22,EXP - PURCHASE OF GOODS/SERVICES - OTHER FACILTIES COSTS - SECURITY,"DATA, INFORMATION, GOVERNANCE AND SECURITY",LITTLE FISH UK LTD,1011715438,2500,User Education & Awareness - Phishing,NG1 1LS,Admin
FOOD STANDARDS AGENCY - Westminster,FOOD STANDARDS AGENCY - Westminster,2021-03-22,EXP - PURCHASE OF GOODS/SERV - SUPPORT - IT SUPPORT SERVICES,IT SERVICE DELIVERY,LITTLE FISH UK LTD,1011715438,3122,IT25 Major Incident Management,NG1 1LS,Admin
FOOD STANDARDS AGENCY - Westminster,FOOD STANDARDS AGENCY - Westminster,2021-03-22,EXP - PURCHASE OF GOODS/SERV - SUPPORT - IT SUPPORT SERVICES,IT SERVICE DELIVERY,LITTLE FISH UK LTD,1011715438,20843.5,IT19 Build Manage & Maintain (EUC) (Sep 20 - Mar 21),NG1 1LS,Admin
FOOD STANDARDS AGENCY - Westminster,FOOD STANDARDS AGENCY - Westminster,2021-03-22,EXP - PURCHASE OF GOODS/SERV - SUPPORT - IT SUPPORT SERVICES,IT SERVICE DELIVERY,LITTLE FISH UK LTD,1011715438,28264,IT25 Helpdesk Servicedesk (Sep 20 - Mar 21),NG1 1LS,Admin
FOOD STANDARDS AGENCY - Westminster,FOOD STANDARDS AGENCY - Westminster,2021-03-22,EXP - PURCHASE OF GOODS/SERVICES - TELECOMS - TELEPHONE,IT SERVICE DELIVERY,LITTLE FISH UK LTD,1011715438,14209,IT1 Networks Design and Delivery (LAN) (Sep 20-Mar 21),NG1 1LS,Admin
FOOD STANDARDS AGENCY - Westminster,FOOD STANDARDS AGENCY - Westminster,2021-03-17,EXP - PURCHASE OF GOODS/SERVICES - OTHER - PROGRAMME EXPENDITURE,RISK ASSESSMENT - RESEARCH AND DEVELOPMENT,C E F A S,2011700003,2100,Provision of Models and Advice for Radiological Marine Assessments in Routine and Emergency Situations,NR33 0HT,Programme
FOOD STANDARDS AGENCY - Westminster,FOOD STANDARDS AGENCY - Westminster,2021-03-17,EXP - PURCHASE OF GOODS/SERVICES - OTHER - PROGRAMME EXPENDITURE,RISK ASSESSMENT - RESEARCH AND DEVELOPMENT,C E F A S,2011700003,57850,Provision of Models and Advice for Radiological Marine Assessments in Routine and Emergency Situations,NR33 0HT,Programme
FOOD STANDARDS AGENCY - Westminster,FOOD STANDARDS AGENCY - Westminster,2021-03-31,EXP - PURCHASE OF GOODS/SERVICES - IT MANAGEMENT AND CHANGE - IT DEVELOPMENT,Surveillance,COGNIZANT WORLDWIDE LTD,1011715550,49924,Supply of AI Data Science Capability - additional line,W2 6BD,Admin
FOOD STANDARDS AGENCY - Westminster,FOOD STANDARDS AGENCY - Westminster,2021-03-17,EXP - PURCHASE OF GOODS/SERVICES - OTHER - PROGRAMME EXPENDITURE,RISK ASSESSMENT - RESEARCH AND DEVELOPMENT,CAMPDEN BRI,1011715393,49066.7,Optimising extraction and RT-qPCR-based detection of hepatitis E virus (HEV) from pork meat and products (HEVdetect),GL55 6LD,Programme
FOOD STANDARDS AGENCY - Westminster,FOOD STANDARDS AGENCY - Westminster,2021-03-25,EXP - PURCHASE OF GOODS/SERVICES - OTHER FACILTIES COSTS - SECURITY,"DATA, INFORMATION, GOVERNANCE AND SECURITY",METACOMPLIANCE LTD,1011715504,47970,MetaCompliance 3 year costs (1.3.21 to 29.02.24),BT48 7EL,Admin
FOOD STANDARDS AGENCY - Westminster,FOOD STANDARDS AGENCY - Westminster,2021-03-25,EXP - PURCHASE OF GOODS/SERVICES - OTHER FACILTIES COSTS - SECURITY,"DATA, INFORMATION, GOVERNANCE AND SECURITY",METACOMPLIANCE LTD,1011715504,9594,UK VAT - UK VAT,BT48 7EL,Admin
FOOD STANDARDS AGENCY - Westminster,FOOD STANDARDS AGENCY - Westminster,2021-03-16,EXP - PURCHASE OF GOODS/SERVICES - OTHER - PROGRAMME EXPENDITURE,FOOD HYPERSENSITIVITIES,R S M UK CONSULTING LLP,1011715369,46483,FS430387 Estimating The Financial Cost To Individual Sufferers Living With A Food Hypersensitivity (Peter Learmonth/Josh Pearcy),EC4A 4AB,Programme
FOOD STANDARDS AGENCY - Westminster,FOOD STANDARDS AGENCY - Westminster,2021-03-25,EXP - PURCHASE OF GOODS/SERVICES - OTHER - PROGRAMME EXPENDITURE,"SCIENCE STRATEGY, CAPABILITY AND RESEARCH",ANIMAL & PLANT HEALTH AGENCY,2011700013,44397.6,"Deliverable 5 (??44,397.60) ?? Sep 2019",KT15 3NB,Programme
FOOD STANDARDS AGENCY - Westminster,FOOD STANDARDS AGENCY - Westminster,2021-03-30,EXP - PURCHASE OF GOODS/SERVICES - OTHER - PROGRAMME EXPENDITURE,COMMS,N L A MEDIA ACCESS LIMITED,1011715542,40629.6,NLA Media Access - annual renewal of licence for Gorkana cuttings,TN1 1NL,Programme
FOOD STANDARDS AGENCY - Westminster,FOOD STANDARDS AGENCY - Westminster,2021-03-09,EXP - PURCHASE OF GOODS/SERVICES - OTHER - CARRIAGE OF SAMPLES,OPERATIONAL DELIVERY,TOPSPEED COURIERS LIMITED,1011715313,2209,Topspeed Couriers - Collection of Raw Cows Drinking Milk Samples - Delivery of Official Controls,WA16 8XN,Admin
FOOD STANDARDS AGENCY - Westminster,FOOD STANDARDS AGENCY - Westminster,2021-03-09,EXP - PURCHASE OF GOODS/SERVICES - OTHER - ANALYSIS OF SAMPLES (NON TRICHINELLA),OPERATIONAL DELIVERY,TOPSPEED COURIERS LIMITED,1011715313,45,Topspeed - EBL Collections,WA16 8XN,Admin
FOOD STANDARDS AGENCY - Westminster,FOOD STANDARDS AGENCY - Westminster,2021-03-09,EXP - PURCHASE OF GOODS/SERVICES - OTHER - CARRIAGE OF SAMPLES,OPERATIONAL DELIVERY,TOPSPEED COURIERS LIMITED,1011715313,144,Topspeed - DNA ear tags,WA16 8XN,Admin
FOOD STANDARDS AGENCY - Westminster,FOOD STANDARDS AGENCY - Westminster,2021-03-09,EXP - PURCHASE OF GOODS/SERVICES - OTHER - CARRIAGE OF SAMPLES,OPERATIONAL DELIVERY,TOPSPEED COURIERS LIMITED,1011715313,11655,Topspeed Couriers - Collection of Trichinella samples - Delivery of Official Controls,WA16 8XN,Admin
FOOD STANDARDS AGENCY - Westminster,FOOD STANDARDS AGENCY - Westminster,2021-03-09,EXP - PURCHASE OF GOODS/SERVICES - OTHER - CARRIAGE OF SAMPLES,OPERATIONAL DELIVERY,TOPSPEED COURIERS LIMITED,1011715313,16200,Topspeed Couriers - Collection of RIM samples,WA16 8XN,Admin
FOOD STANDARDS AGENCY - Westminster,FOOD STANDARDS AGENCY - Westminster,2021-03-09,EXP - PURCHASE OF GOODS/SERVICES - OTHER - CARRIAGE OF SAMPLES,OPERATIONAL DELIVERY,TOPSPEED COURIERS LIMITED,1011715313,50,Topspeed - Wine collections,WA16 8XN,Admin
FOOD STANDARDS AGENCY - Westminster,FOOD STANDARDS AGENCY - Westminster,2021-03-09,EXP - PURCHASE OF GOODS/SERVICES - OTHER - CARRIAGE OF SAMPLES,OPERATIONAL DELIVERY,TOPSPEED COURIERS LIMITED,1011715313,5445,Topspeed Couriers - TB samples,WA16 8XN,Admin
FOOD STANDARDS AGENCY - Westminster,FOOD STANDARDS AGENCY - Westminster,2021-03-09,EXP - PURCHASE OF GOODS/SERVICES - OTHER - CARRIAGE OF SAMPLES,OPERATIONAL DELIVERY,TOPSPEED COURIERS LIMITED,1011715313,1400,Topspeed Couriers - Pig AMR sample collections,WA16 8XN,Admin
FOOD STANDARDS AGENCY - Westminster,FOOD STANDARDS AGENCY - Westminster,2021-03-03,EXP - PURCHASE OF GOODS/SERVICES - OTHER ICT COSTS - COMPUTER HARDWARE,IT SERVICE DELIVERY,COREAZURE LTD,1011715248,36185,IT24 Datacentre and Hosting,EC1N 8TS,Admin
FOOD STANDARDS AGENCY - Westminster,FOOD STANDARDS AGENCY - Westminster,2021-03-03,EXP - PURCHASE OF GOODS/SERVICES - OTHER ICT COSTS - COMPUTER HARDWARE,IT SERVICE DELIVERY,COREAZURE LTD,1011715248,7237,UK VAT - UK VAT,EC1N 8TS,Admin
FOOD STANDARDS AGENCY - Westminster,FOOD STANDARDS AGENCY - Westminster,2021-03-23,EXP - PURCHASE OF GOODS/SERVICES - OTHER - PROGRAMME EXPENDITURE,RISK ASSESSMENT - RESEARCH AND DEVELOPMENT,PUBLIC HEALTH ENGLAND,2011700009,35539,A microbiological survey of Campylobacter contamination in fresh whole UK-produced chilled chickens at retail sale (Y5/6) - Lot 2 Analysis,OX11 0RQ,Programme
FOOD STANDARDS AGENCY - Westminster,FOOD STANDARDS AGENCY - Westminster,2021-03-30,EXP - PURCHASE OF GOODS/SERVICES - OTHER - PROGRAMME EXPENDITURE,DIGITAL,DEESON GROUP LTD,1011715534,3360,FSA639 Continuous Application Development,CT1 2PX,Programme
FOOD STANDARDS AGENCY - Westminster,FOOD STANDARDS AGENCY - Westminster,2021-03-30,EXP - PURCHASE OF GOODS/SERVICES - OTHER - PROGRAMME EXPENDITURE,DIGITAL,DEESON GROUP LTD,1011715534,672,UK VAT - UK VAT,CT1 2PX,Programme
FOOD STANDARDS AGENCY - Westminster,FOOD STANDARDS AGENCY - Westminster,2021-03-30,EXP - PURCHASE OF GOODS/SERVICES - OTHER - PROGRAMME EXPENDITURE,DIGITAL,DEESON GROUP LTD,1011715534,941.85,Accessibility and UX functionality refinement,CT1 2PX,Programme
FOOD STANDARDS AGENCY - Westminster,FOOD STANDARDS AGENCY - Westminster,2021-03-30,EXP - PURCHASE OF GOODS/SERVICES - IT MANAGEMENT AND CHANGE - IT DEVELOPMENT,DIGITAL,DEESON GROUP LTD,1011715534,85.05,FSA709 WP5 Evidence & Risk Assessment,CT1 2PX,Admin
FOOD STANDARDS AGENCY - Westminster,FOOD STANDARDS AGENCY - Westminster,2021-03-30,EXP - PURCHASE OF GOODS/SERVICES - IT MANAGEMENT AND CHANGE - IT DEVELOPMENT,DIGITAL,DEESON GROUP LTD,1011715534,17.01,UK VAT - UK VAT,CT1 2PX,Admin
FOOD STANDARDS AGENCY - Westminster,FOOD STANDARDS AGENCY - Westminster,2021-03-30,EXP - PURCHASE OF GOODS/SERVICES - OTHER - PROGRAMME EXPENDITURE,DIGITAL,DEESON GROUP LTD,1011715534,30500,WP9 Improving Vulnerability of Alerts System & Filter Function accessibility,CT1 2PX,Programme
FOOD STANDARDS AGENCY - Westminster,FOOD STANDARDS AGENCY - Westminster,2021-03-04,EXP - PURCHASE OF GOODS/SERVICES - OTHER - PROGRAMME EXPENDITURE,SCIENTIFIC METHODS AND LABORATORY POLICY,HAMPSHIRE SCIENTIFIC SERVICE HAMPSHIRE COUNTY COUNCIL,1011715266,34237.5,Covid-19 surveillance sampling programme,SO23 8UB,Programme
FOOD STANDARDS AGENCY - Westminster,FOOD STANDARDS AGENCY - Westminster,2021-03-26,EXP - PURCHASE OF GOODS/SERVICES - OTHER - PROGRAMME EXPENDITURE,FOOD INCIDENTS AND RESILIENCE PROG(PROG),WORLD HEALTH ORGANIZATION,20000181,41042.93,SOP5-WQ761268-173305-173858-FSA-Payment Into Foreign BankINFOSAN FINAL INSTALLMENT,SWITZERLAND,Programme
FOOD STANDARDS AGENCY - Westminster,FOOD STANDARDS AGENCY - Westminster,2021-03-08,EXP - PURCHASE OF GOODS/SERVICES - OTHER - PROGRAMME EXPENDITURE,"SCIENCE STRATEGY, CAPABILITY AND RESEARCH",SCIENCE & TECHNOLOGY FACILITIES COUNCIL,2012700954,40000,"21st Century Abattoir, STFC. Research collaboration",SN2 1ET,Programme
FOOD STANDARDS AGENCY - Westminster,FOOD STANDARDS AGENCY - Westminster,2021-03-25,EXP - PURCHASE OF GOODS/SERVICES - OTHER - PROGRAMME EXPENDITURE,SCIENTIFIC METHODS AND LABORATORY POLICY,I10 LTD,1011715493,32906.25,FSA728 WP2 - Sampling System Discovery,NG31 6JL,Programme
FOOD STANDARDS AGENCY - Westminster,FOOD STANDARDS AGENCY - Westminster,2021-03-24,"EXP - PURCHASE OF GOODS/SERVICES - TRICHINELLA TESTING, CARRIAGE & CONSUMABLES",OPERATIONAL DELIVERY,TULIP,1011715479,13861.8,Tulip - Dalehead - Delivery of Official Controls - Trichinella testing,CV34 6DA,Admin
FOOD STANDARDS AGENCY - Westminster,FOOD STANDARDS AGENCY - Westminster,2021-03-24,"EXP - PURCHASE OF GOODS/SERVICES - TRICHINELLA TESTING, CARRIAGE & CONSUMABLES",OPERATIONAL DELIVERY,TULIP,1011715479,15441,Tulip - Dalehead - Delivery of Official Controls - Trichinella testing,CV34 6DA,Admin
FOOD STANDARDS AGENCY - Westminster,FOOD STANDARDS AGENCY - Westminster,2021-03-17,EXP - PURCHASE OF GOODS/SERVICES - OTHER - PROGRAMME EXPENDITURE,SCIENTIFIC METHODS AND LABORATORY POLICY,LGC LTD,1011715396,27113.44,FS616035 - National Reference Laboratory for Feed Additives,TW11 0LY,Programme
FOOD STANDARDS AGENCY - Westminster,FOOD STANDARDS AGENCY - Westminster,2021-03-23,EXP - PURCHASE OF GOODS/SERV - SUPPORT - IT SUPPORT SERVICES,IT SERVICE DELIVERY,CIVICA UK LTD,1011715470,6351.48,IT Small Enhancements Call-off,DY1 4TD,Admin
FOOD STANDARDS AGENCY - Westminster,FOOD STANDARDS AGENCY - Westminster,2021-03-23,EXP - PURCHASE OF GOODS/SERV - SUPPORT - IT SUPPORT SERVICES,IT SERVICE DELIVERY,CIVICA UK LTD,1011715470,1270.3,UK VAT - UK VAT,DY1 4TD,Admin
FOOD STANDARDS AGENCY - Westminster,FOOD STANDARDS AGENCY - Westminster,2021-03-23,EXP - PURCHASE OF GOODS/SERV - SUPPORT - IT SUPPORT SERVICES,IT SERVICE DELIVERY,CIVICA UK LTD,1011715470,20320,FSA672 ?? Application Support Monthly Charge,DY1 4TD,Admin
FOOD STANDARDS AGENCY - Westminster,FOOD STANDARDS AGENCY - Westminster,2021-03-23,EXP - PURCHASE OF GOODS/SERVICES - OTHER - PROGRAMME EXPENDITURE,DIGITAL,CIVICA UK LTD,1011715470,133.43,FSA672 WP27 Accessibility Enhancements Call-Off,DY1 4TD,Programme
FOOD STANDARDS AGENCY - Westminster,FOOD STANDARDS AGENCY - Westminster,2021-03-02,redacted under S43 FOI Act,FOOD INCIDENTS AND RESILIENCE PROG(PROG),redacted under S43 FOI Act,1011715242,10115.83,redacted under S43 FOI Act,redacted under S43 FOI Act,Admin
FOOD STANDARDS AGENCY - Westminster,FOOD STANDARDS AGENCY - Westminster,2021-03-02,EXP - PURCHASE OF GOODS/SERVICES - OTHER - PROGRAMME EXPENDITURE,SCIENTIFIC METHODS AND LABORATORY POLICY,FERA SCIENCE LIMITED,1011715242,16296.7,CBD Sampling Surveyreq Abi Salako,YO41 1LZ,Programme
FOOD STANDARDS AGENCY - Westminster,FOOD STANDARDS AGENCY - Westminster,2021-03-09,EXP - PURCHASE OF GOODS/SERVICES - OTHER - NEXT GENERATION - HR,PEOPLE & ORGANISATIONAL CHANGE,MINISTRY OF JUSTICE,2012700955,25875,CSHR Casework (MoJ) ?? Annual Service 2020/21,NP209BB,Admin
FOOD STANDARDS AGENCY - Westminster,FOOD STANDARDS AGENCY - Westminster,2021-03-09,EXP - PURCHASE OF GOODS/SERVICES - OTHER - NEXT GENERATION - HR,PEOPLE & ORGANISATIONAL CHANGE,MINISTRY OF JUSTICE,2012700955,5175,UK VAT - UK VAT,NP209BB,Admin
FOOD STANDARDS AGENCY - Westminster,FOOD STANDARDS AGENCY - Westminster,2021-03-23,EXP - AMORTISATION - INTANGIBLE ASSETS,IT SERVICE DELIVERY,COMPUTACENTER UK LTD,1011715474,24695.1,Lenovo Laptops,AL10 9TW,Capital
FOOD STANDARDS AGENCY - Westminster,FOOD STANDARDS AGENCY - Westminster,2021-03-23,EXP - AMORTISATION - INTANGIBLE ASSETS,IT SERVICE DELIVERY,COMPUTACENTER UK LTD,1011715474,4939.02,UK VAT - UK VAT,AL10 9TW,Capital
FOOD STANDARDS AGENCY - Westminster,FOOD STANDARDS AGENCY - Westminster,2021-03-10,EXP - PURCHASE OF GOODS/SERVICES - OTHER - PROGRAMME EXPENDITURE,ANALYTICS UNIT,IPSOS MORI,1011715330,23850,Diversity and Inclusion Research,E1W 1YW,Programme
FOOD STANDARDS AGENCY - Westminster,FOOD STANDARDS AGENCY - Westminster,2021-03-31,EXP - PURCHASE OF GOODS/SERVICES - OTHER - PROGRAMME EXPENDITURE,RISK ASSESSMENT - RESEARCH AND DEVELOPMENT,GLASGOW CALEDONIAN UNIVERSITY,1011715549,9389.13,Thermal death model for Hepatitis E virus (HEV),G4 0BA,Programme
FOOD STANDARDS AGENCY - Westminster,FOOD STANDARDS AGENCY - Westminster,2021-03-31,EXP - PURCHASE OF GOODS/SERVICES - OTHER - PROGRAMME EXPENDITURE,RISK ASSESSMENT - RESEARCH AND DEVELOPMENT,GLASGOW CALEDONIAN UNIVERSITY,1011715549,14374.44,Thermal death model for Hepatitis E virus (HEV),G4 0BA,Programme
FOOD STANDARDS AGENCY - Westminster,FOOD STANDARDS AGENCY - Westminster,2021-03-31,EXP - PURCHASE OF GOODS/SERVICES - OTHER - PROGRAMME EXPENDITURE,SCIENTIFIC METHODS AND LABORATORY POLICY,FERA SCIENCE LIMITED,1011715555,8750,"FS 301046 - Delivering an Effective, Resilient & Sustainable UK-China Food Safety Partnership Bulk Order - Start date: 01/10/2017End date: 31/10/2022",YO41 1LZ,Programme
FOOD STANDARDS AGENCY - Westminster,FOOD STANDARDS AGENCY - Westminster,2021-03-31,EXP - PURCHASE OF GOODS/SERVICES - OTHER - PROGRAMME EXPENDITURE,SCIENTIFIC METHODS AND LABORATORY POLICY,FERA SCIENCE LIMITED,1011715555,15000,CBD Sampling Surveyreq Abi Salako,YO41 1LZ,Programme
FOOD STANDARDS AGENCY - Westminster,FOOD STANDARDS AGENCY - Westminster,2021-03-23,EXP - PURCHASE OF GOODS/SERVICES - OTHER - PROGRAMME EXPENDITURE,INTERNAL AUDIT,ERNST & YOUNG LLP,1011715467,15570.94,FS430669 - Audit Assurance and Performance,SE1 2AF,Programme
FOOD STANDARDS AGENCY - Westminster,FOOD STANDARDS AGENCY - Westminster,2021-03-23,EXP - PURCHASE OF GOODS/SERVICES - OTHER - PROGRAMME EXPENDITURE,INTERNAL AUDIT,ERNST & YOUNG LLP,1011715467,7411,FS430669 Audit Assurance and Performance Management,SE1 2AF,Programme
FOOD STANDARDS AGENCY - Westminster,FOOD STANDARDS AGENCY - Westminster,2021-03-23,EXP - PURCHASE OF GOODS/SERVICES - OTHER - PROGRAMME EXPENDITURE,INTERNAL AUDIT,ERNST & YOUNG LLP,1011715467,1482.2,UK VAT - UK VAT,SE1 2AF,Programme
FOOD STANDARDS AGENCY - Westminster,FOOD STANDARDS AGENCY - Westminster,2021-03-22,EXP - PURCHASE OF GOODS/SERV - SUPPORT - IT SUPPORT SERVICES,Surveillance,EPIMORPHICS LTD,1011715442,3300,FSA581 WP27 Address Licensing Negotiation Support,BS20 6PT,Admin
FOOD STANDARDS AGENCY - Westminster,FOOD STANDARDS AGENCY - Westminster,2021-03-22,EXP - PURCHASE OF GOODS/SERV - SUPPORT - IT SUPPORT SERVICES,Surveillance,EPIMORPHICS LTD,1011715442,1480.7,Hosting Charges,BS20 6PT,Admin
FOOD STANDARDS AGENCY - Westminster,FOOD STANDARDS AGENCY - Westminster,2021-03-22,EXP - PURCHASE OF GOODS/SERV - SUPPORT - IT SUPPORT SERVICES,Surveillance,EPIMORPHICS LTD,1011715442,8000,Monthly Support,BS20 6PT,Admin
FOOD STANDARDS AGENCY - Westminster,FOOD STANDARDS AGENCY - Westminster,2021-03-22,EXP - PURCHASE OF GOODS/SERV - SUPPORT - IT SUPPORT SERVICES,Surveillance,EPIMORPHICS LTD,1011715442,5000,Technical Uplift Activities,BS20 6PT,Admin
FOOD STANDARDS AGENCY - Westminster,FOOD STANDARDS AGENCY - Westminster,2021-03-22,EXP - PURCHASE OF GOODS/SERVICES - OTHER PROFESSIONAL SERVICES,Surveillance,EPIMORPHICS LTD,1011715442,4737.5,FSA581 - Unified View Data Support nd RaFB API Update,BS20 6PT,Admin
FOOD STANDARDS AGENCY - Westminster,FOOD STANDARDS AGENCY - Westminster,2021-03-22,EXP - PURCHASE OF GOODS/SERVICES - TELECOMS - MOBILE PHONES,IT SERVICE DELIVERY,EE LTD,1011715441,22067.94,EE Mobile Contract over 24 months - additional line,AL10 9BW,Admin
FOOD STANDARDS AGENCY - Westminster,FOOD STANDARDS AGENCY - Westminster,2021-03-22,EXP - PURCHASE OF GOODS/SERVICES - TELECOMS - MOBILE PHONES,IT SERVICE DELIVERY,EE LTD,1011715441,4411.19,UK VAT - UK VAT,AL10 9BW,Admin
FOOD STANDARDS AGENCY - Westminster,FOOD STANDARDS AGENCY - Westminster,2021-03-10,EXP - PURCHASE OF GOODS/SERVICES - OTHER - PROGRAMME EXPENDITURE,SCIENTIFIC METHODS AND LABORATORY POLICY,FERA SCIENCE LIMITED,1011715327,21545,FS 616030 - National Reference Laboratory for Contaminants,YO41 1LZ,Programme
FOOD STANDARDS AGENCY - Westminster,FOOD STANDARDS AGENCY - Westminster,2021-03-03,EXP - PURCHASE OF GOODS/SERVICES - TELECOMS - MOBILE PHONES,IT SERVICE DELIVERY,EE LTD,1011715252,21019.09,EE Mobile Contract over 24 months - additional line,AL10 9BW,Admin
FOOD STANDARDS AGENCY - Westminster,FOOD STANDARDS AGENCY - Westminster,2021-03-03,EXP - PURCHASE OF GOODS/SERVICES - TELECOMS - MOBILE PHONES,IT SERVICE DELIVERY,EE LTD,1011715252,4199.35,UK VAT - UK VAT,AL10 9BW,Admin
